Workbook

Sheet Serie mensual
A1: LIQUIDACIÓN DE DIVISAS — CIARA-CEC · Base oficial
A2: Valor NOMINAL en dólares (columna D = el dato que se carga tal cual). Las demás columnas se calculan solas. Fuente: CIARA-CEC.
A4: Año | B4: Mes | C4: Mes (nombre) | D4: Liquidación (USD) | E4: Acumulado anual (USD) | F4: Liquidación (M USD) | G4: Acumulado (M USD)
A5: 2002 | B5: 6 | C5: Junio | D5: 702783954.6 | E5: =IF(A5=A4,E4+D5,D5) -> 702783954.6 | F5: =D5/1000000 -> 702.7839546 | G5: =E5/1000000 -> 702.7839546
A6: 2002 | B6: 7 | C6: Julio | D6: 807013999.5 | E6: =IF(A6=A5,E5+D6,D6) -> 1509797954 | F6: =D6/1000000 -> 807.0139995 | G6: =E6/1000000 -> 1509.797954
A7: 2002 | B7: 8 | C7: Agosto | D7: 637162765.9 | E7: =IF(A7=A6,E6+D7,D7) -> 2146960720 | F7: =D7/1000000 -> 637.1627659 | G7: =E7/1000000 -> 2146.96072
A8: 2002 | B8: 9 | C8: Septiembre | D8: 572474879.7 | E8: =IF(A8=A7,E7+D8,D8) -> 2719435600 | F8: =D8/1000000 -> 572.4748797 | G8: =E8/1000000 -> 2719.4356
A9: 2002 | B9: 10 | C9: Octubre | D9: 668802248 | E9: =IF(A9=A8,E8+D9,D9) -> 3388237848 | F9: =D9/1000000 -> 668.802248 | G9: =E9/1000000 -> 3388.237848
A10: 2002 | B10: 11 | C10: Noviembre | D10: 532371379 | E10: =IF(A10=A9,E9+D10,D10) -> 3920609227 | F10: =D10/1000000 -> 532.371379 | G10: =E10/1000000 -> 3920.609227
A11: 2002 | B11: 12 | C11: Diciembre | D11: 442199552 | E11: =IF(A11=A10,E10+D11,D11) -> 4362808779 | F11: =D11/1000000 -> 442.199552 | G11: =E11/1000000 -> 4362.808779
A12: 2003 | B12: 1 | C12: Enero | D12: 648346805 | E12: =IF(A12=A11,E11+D12,D12) -> 648346805 | F12: =D12/1000000 -> 648.346805 | G12: =E12/1000000 -> 648.346805
A13: 2003 | B13: 2 | C13: Febrero | D13: 429309485 | E13: =IF(A13=A12,E12+D13,D13) -> 1077656290 | F13: =D13/1000000 -> 429.309485 | G13: =E13/1000000 -> 1077.65629
A14: 2003 | B14: 3 | C14: Marzo | D14: 633353409 | E14: =IF(A14=A13,E13+D14,D14) -> 1711009699 | F14: =D14/1000000 -> 633.353409 | G14: =E14/1000000 -> 1711.009699
A15: 2003 | B15: 4 | C15: Abril | D15: 866749669 | E15: =IF(A15=A14,E14+D15,D15) -> 2577759368 | F15: =D15/1000000 -> 866.749669 | G15: =E15/1000000 -> 2577.759368
A16: 2003 | B16: 5 | C16: Mayo | D16: 1093831665 | E16: =IF(A16=A15,E15+D16,D16) -> 3671591033 | F16: =D16/1000000 -> 1093.831665 | G16: =E16/1000000 -> 3671.591033
A17: 2003 | B17: 6 | C17: Junio | D17: 1159673852 | E17: =IF(A17=A16,E16+D17,D17) -> 4831264885 | F17: =D17/1000000 -> 1159.673852 | G17: =E17/1000000 -> 4831.264885
A18: 2003 | B18: 7 | C18: Julio | D18: 955142867 | E18: =IF(A18=A17,E17+D18,D18) -> 5786407752 | F18: =D18/1000000 -> 955.142867 | G18: =E18/1000000 -> 5786.407752
A19: 2003 | B19: 8 | C19: Agosto | D19: 819182444 | E19: =IF(A19=A18,E18+D19,D19) -> 6605590196 | F19: =D19/1000000 -> 819.182444 | G19: =E19/1000000 -> 6605.590196
A20: 2003 | B20: 9 | C20: Septiembre | D20: 755661302 | E20: =IF(A20=A19,E19+D20,D20) -> 7361251498 | F20: =D20/1000000 -> 755.661302 | G20: =E20/1000000 -> 7361.251498
A21: 2003 | B21: 10 | C21: Octubre | D21: 828323345 | E21: =IF(A21=A20,E20+D21,D21) -> 8189574843 | F21: =D21/1000000 -> 828.323345 | G21: =E21/1000000 -> 8189.574843
A22: 2003 | B22: 11 | C22: Noviembre | D22: 538605178 | E22: =IF(A22=A21,E21+D22,D22) -> 8728180021 | F22: =D22/1000000 -> 538.605178 | G22: =E22/1000000 -> 8728.180021
A23: 2003 | B23: 12 | C23: Diciembre | D23: 722074077 | E23: =IF(A23=A22,E22+D23,D23) -> 9450254098 | F23: =D23/1000000 -> 722.074077 | G23: =E23/1000000 -> 9450.254098
A24: 2004 | B24: 1 | C24: Enero | D24: 1006513262 | E24: =IF(A24=A23,E23+D24,D24) -> 1006513262 | F24: =D24/1000000 -> 1006.513262 | G24: =E24/1000000 -> 1006.513262
A25: 2004 | B25: 2 | C25: Febrero | D25: 592108672 | E25: =IF(A25=A24,E24+D25,D25) -> 1598621934 | F25: =D25/1000000 -> 592.108672 | G25: =E25/1000000 -> 1598.621934
A26: 2004 | B26: 3 | C26: Marzo | D26: 878817921 | E26: =IF(A26=A25,E25+D26,D26) -> 2477439855 | F26: =D26/1000000 -> 878.817921 | G26: =E26/1000000 -> 2477.439855
A27: 2004 | B27: 4 | C27: Abril | D27: 1134377634 | E27: =IF(A27=A26,E26+D27,D27) -> 3611817489 | F27: =D27/1000000 -> 1134.377634 | G27: =E27/1000000 -> 3611.817489
A28: 2004 | B28: 5 | C28: Mayo | D28: 1366592371 | E28: =IF(A28=A27,E27+D28,D28) -> 4978409860 | F28: =D28/1000000 -> 1366.592371 | G28: =E28/1000000 -> 4978.40986
A29: 2004 | B29: 6 | C29: Junio | D29: 1231107849 | E29: =IF(A29=A28,E28+D29,D29) -> 6209517709 | F29: =D29/1000000 -> 1231.107849 | G29: =E29/1000000 -> 6209.517709
A30: 2004 | B30: 7 | C30: Julio | D30: 866823050 | E30: =IF(A30=A29,E29+D30,D30) -> 7076340759 | F30: =D30/1000000 -> 866.82305 | G30: =E30/1000000 -> 7076.340759
A31: 2004 | B31: 8 | C31: Agosto | D31: 728072498 | E31: =IF(A31=A30,E30+D31,D31) -> 7804413257 | F31: =D31/1000000 -> 728.072498 | G31: =E31/1000000 -> 7804.413257
A32: 2004 | B32: 9 | C32: Septiembre | D32: 896460769 | E32: =IF(A32=A31,E31+D32,D32) -> 8700874026 | F32: =D32/1000000 -> 896.460769 | G32: =E32/1000000 -> 8700.874026
A33: 2004 | B33: 10 | C33: Octubre | D33: 690104236 | E33: =IF(A33=A32,E32+D33,D33) -> 9390978262 | F33: =D33/1000000 -> 690.104236 | G33: =E33/1000000 -> 9390.978262
A34: 2004 | B34: 11 | C34: Noviembre | D34: 717254300 | E34: =IF(A34=A33,E33+D34,D34) -> 10108232562 | F34: =D34/1000000 -> 717.2543 | G34: =E34/1000000 -> 10108.23256
A35: 2004 | B35: 12 | C35: Diciembre | D35: 947376573 | E35: =IF(A35=A34,E34+D35,D35) -> 11055609135 | F35: =D35/1000000 -> 947.376573 | G35: =E35/1000000 -> 11055.60914
A36: 2005 | B36: 1 | C36: Enero | D36: 765562150 | E36: =IF(A36=A35,E35+D36,D36) -> 765562150 | F36: =D36/1000000 -> 765.56215 | G36: =E36/1000000 -> 765.56215
A37: 2005 | B37: 2 | C37: Febrero | D37: 777924305 | E37: =IF(A37=A36,E36+D37,D37) -> 1543486455 | F37: =D37/1000000 -> 777.924305 | G37: =E37/1000000 -> 1543.486455
A38: 2005 | B38: 3 | C38: Marzo | D38: 959642267 | E38: =IF(A38=A37,E37+D38,D38) -> 2503128722 | F38: =D38/1000000 -> 959.642267 | G38: =E38/1000000 -> 2503.128722
A39: 2005 | B39: 4 | C39: Abril | D39: 1168637467 | E39: =IF(A39=A38,E38+D39,D39) -> 3671766189 | F39: =D39/1000000 -> 1168.637467 | G39: =E39/1000000 -> 3671.766189
A40: 2005 | B40: 5 | C40: Mayo | D40: 1433442614 | E40: =IF(A40=A39,E39+D40,D40) -> 5105208803 | F40: =D40/1000000 -> 1433.442614 | G40: =E40/1000000 -> 5105.208803
A41: 2005 | B41: 6 | C41: Junio | D41: 1591786034 | E41: =IF(A41=A40,E40+D41,D41) -> 6696994837 | F41: =D41/1000000 -> 1591.786034 | G41: =E41/1000000 -> 6696.994837
A42: 2005 | B42: 7 | C42: Julio | D42: 1154567620 | E42: =IF(A42=A41,E41+D42,D42) -> 7851562457 | F42: =D42/1000000 -> 1154.56762 | G42: =E42/1000000 -> 7851.562457
A43: 2005 | B43: 8 | C43: Agosto | D43: 966542976 | E43: =IF(A43=A42,E42+D43,D43) -> 8818105433 | F43: =D43/1000000 -> 966.542976 | G43: =E43/1000000 -> 8818.105433
A44: 2005 | B44: 9 | C44: Septiembre | D44: 632922075 | E44: =IF(A44=A43,E43+D44,D44) -> 9451027508 | F44: =D44/1000000 -> 632.922075 | G44: =E44/1000000 -> 9451.027508
A45: 2005 | B45: 10 | C45: Octubre | D45: 660788621 | E45: =IF(A45=A44,E44+D45,D45) -> 10111816129 | F45: =D45/1000000 -> 660.788621 | G45: =E45/1000000 -> 10111.81613
A46: 2005 | B46: 11 | C46: Noviembre | D46: 677307596 | E46: =IF(A46=A45,E45+D46,D46) -> 10789123725 | F46: =D46/1000000 -> 677.307596 | G46: =E46/1000000 -> 10789.12373
A47: 2005 | B47: 12 | C47: Diciembre | D47: 865157011 | E47: =IF(A47=A46,E46+D47,D47) -> 11654280736 | F47: =D47/1000000 -> 865.157011 | G47: =E47/1000000 -> 11654.28074
A48: 2006 | B48: 1 | C48: Enero | D48: 851393281 | E48: =IF(A48=A47,E47+D48,D48) -> 851393281 | F48: =D48/1000000 -> 851.393281 | G48: =E48/1000000 -> 851.393281
A49: 2006 | B49: 2 | C49: Febrero | D49: 754154708 | E49: =IF(A49=A48,E48+D49,D49) -> 1605547989 | F49: =D49/1000000 -> 754.154708 | G49: =E49/1000000 -> 1605.547989
A50: 2006 | B50: 3 | C50: Marzo | D50: 1000629225 | E50: =IF(A50=A49,E49+D50,D50) -> 2606177214 | F50: =D50/1000000 -> 1000.629225 | G50: =E50/1000000 -> 2606.177214
A51: 2006 | B51: 4 | C51: Abril | D51: 1190893094 | E51: =IF(A51=A50,E50+D51,D51) -> 3797070308 | F51: =D51/1000000 -> 1190.893094 | G51: =E51/1000000 -> 3797.070308
A52: 2006 | B52: 5 | C52: Mayo | D52: 1518573231 | E52: =IF(A52=A51,E51+D52,D52) -> 5315643539 | F52: =D52/1000000 -> 1518.573231 | G52: =E52/1000000 -> 5315.643539
A53: 2006 | B53: 6 | C53: Junio | D53: 1260097657 | E53: =IF(A53=A52,E52+D53,D53) -> 6575741196 | F53: =D53/1000000 -> 1260.097657 | G53: =E53/1000000 -> 6575.741196
A54: 2006 | B54: 7 | C54: Julio | D54: 1083802788 | E54: =IF(A54=A53,E53+D54,D54) -> 7659543984 | F54: =D54/1000000 -> 1083.802788 | G54: =E54/1000000 -> 7659.543984
A55: 2006 | B55: 8 | C55: Agosto | D55: 1002605337 | E55: =IF(A55=A54,E54+D55,D55) -> 8662149321 | F55: =D55/1000000 -> 1002.605337 | G55: =E55/1000000 -> 8662.149321
A56: 2006 | B56: 9 | C56: Septiembre | D56: 929332201 | E56: =IF(A56=A55,E55+D56,D56) -> 9591481522 | F56: =D56/1000000 -> 929.332201 | G56: =E56/1000000 -> 9591.481522
A57: 2006 | B57: 10 | C57: Octubre | D57: 912324187 | E57: =IF(A57=A56,E56+D57,D57) -> 10503805709 | F57: =D57/1000000 -> 912.324187 | G57: =E57/1000000 -> 10503.80571
A58: 2006 | B58: 11 | C58: Noviembre | D58: 780993342 | E58: =IF(A58=A57,E57+D58,D58) -> 11284799051 | F58: =D58/1000000 -> 780.993342 | G58: =E58/1000000 -> 11284.79905
A59: 2006 | B59: 12 | C59: Diciembre | D59: 991290560 | E59: =IF(A59=A58,E58+D59,D59) -> 12276089611 | F59: =D59/1000000 -> 991.29056 | G59: =E59/1000000 -> 12276.08961
A60: 2007 | B60: 1 | C60: Enero | D60: 1050717671 | E60: =IF(A60=A59,E59+D60,D60) -> 1050717671 | F60: =D60/1000000 -> 1050.717671 | G60: =E60/1000000 -> 1050.717671
A61: 2007 | B61: 2 | C61: Febrero | D61: 695775262 | E61: =IF(A61=A60,E60+D61,D61) -> 1746492933 | F61: =D61/1000000 -> 695.775262 | G61: =E61/1000000 -> 1746.492933
A62: 2007 | B62: 3 | C62: Marzo | D62: 1063770252 | E62: =IF(A62=A61,E61+D62,D62) -> 2810263185 | F62: =D62/1000000 -> 1063.770252 | G62: =E62/1000000 -> 2810.263185
A63: 2007 | B63: 4 | C63: Abril | D63: 1504942085 | E63: =IF(A63=A62,E62+D63,D63) -> 4315205270 | F63: =D63/1000000 -> 1504.942085 | G63: =E63/1000000 -> 4315.20527
A64: 2007 | B64: 5 | C64: Mayo | D64: 1880010291 | E64: =IF(A64=A63,E63+D64,D64) -> 6195215561 | F64: =D64/1000000 -> 1880.010291 | G64: =E64/1000000 -> 6195.215561
A65: 2007 | B65: 6 | C65: Junio | D65: 1813941303 | E65: =IF(A65=A64,E64+D65,D65) -> 8009156864 | F65: =D65/1000000 -> 1813.941303 | G65: =E65/1000000 -> 8009.156864
A66: 2007 | B66: 7 | C66: Julio | D66: 1736655146 | E66: =IF(A66=A65,E65+D66,D66) -> 9745812010 | F66: =D66/1000000 -> 1736.655146 | G66: =E66/1000000 -> 9745.81201
A67: 2007 | B67: 8 | C67: Agosto | D67: 1727377366 | E67: =IF(A67=A66,E66+D67,D67) -> 11473189376 | F67: =D67/1000000 -> 1727.377366 | G67: =E67/1000000 -> 11473.18938
A68: 2007 | B68: 9 | C68: Septiembre | D68: 1634321313 | E68: =IF(A68=A67,E67+D68,D68) -> 13107510689 | F68: =D68/1000000 -> 1634.321313 | G68: =E68/1000000 -> 13107.51069
A69: 2007 | B69: 10 | C69: Octubre | D69: 1552439428 | E69: =IF(A69=A68,E68+D69,D69) -> 14659950117 | F69: =D69/1000000 -> 1552.439428 | G69: =E69/1000000 -> 14659.95012
A70: 2007 | B70: 11 | C70: Noviembre | D70: 1412276353 | E70: =IF(A70=A69,E69+D70,D70) -> 16072226470 | F70: =D70/1000000 -> 1412.276353 | G70: =E70/1000000 -> 16072.22647
A71: 2007 | B71: 12 | C71: Diciembre | D71: 1505713297 | E71: =IF(A71=A70,E70+D71,D71) -> 17577939767 | F71: =D71/1000000 -> 1505.713297 | G71: =E71/1000000 -> 17577.93977
A72: 2008 | B72: 1 | C72: Enero | D72: 1638757715 | E72: =IF(A72=A71,E71+D72,D72) -> 1638757715 | F72: =D72/1000000 -> 1638.757715 | G72: =E72/1000000 -> 1638.757715
A73: 2008 | B73: 2 | C73: Febrero | D73: 1614167504 | E73: =IF(A73=A72,E72+D73,D73) -> 3252925219 | F73: =D73/1000000 -> 1614.167504 | G73: =E73/1000000 -> 3252.925219
A74: 2008 | B74: 3 | C74: Marzo | D74: 1353305837 | E74: =IF(A74=A73,E73+D74,D74) -> 4606231056 | F74: =D74/1000000 -> 1353.305837 | G74: =E74/1000000 -> 4606.231056
A75: 2008 | B75: 4 | C75: Abril | D75: 2311764752 | E75: =IF(A75=A74,E74+D75,D75) -> 6917995808 | F75: =D75/1000000 -> 2311.764752 | G75: =E75/1000000 -> 6917.995808
A76: 2008 | B76: 5 | C76: Mayo | D76: 2401905602 | E76: =IF(A76=A75,E75+D76,D76) -> 9319901410 | F76: =D76/1000000 -> 2401.905602 | G76: =E76/1000000 -> 9319.90141
A77: 2008 | B77: 6 | C77: Junio | D77: 1646194310 | E77: =IF(A77=A76,E76+D77,D77) -> 10966095720 | F77: =D77/1000000 -> 1646.19431 | G77: =E77/1000000 -> 10966.09572
A78: 2008 | B78: 7 | C78: Julio | D78: 2807298235 | E78: =IF(A78=A77,E77+D78,D78) -> 13773393955 | F78: =D78/1000000 -> 2807.298235 | G78: =E78/1000000 -> 13773.39396
A79: 2008 | B79: 8 | C79: Agosto | D79: 2163679666 | E79: =IF(A79=A78,E78+D79,D79) -> 15937073621 | F79: =D79/1000000 -> 2163.679666 | G79: =E79/1000000 -> 15937.07362
A80: 2008 | B80: 9 | C80: Septiembre | D80: 2007207290 | E80: =IF(A80=A79,E79+D80,D80) -> 17944280911 | F80: =D80/1000000 -> 2007.20729 | G80: =E80/1000000 -> 17944.28091
A81: 2008 | B81: 10 | C81: Octubre | D81: 1484057621 | E81: =IF(A81=A80,E80+D81,D81) -> 19428338532 | F81: =D81/1000000 -> 1484.057621 | G81: =E81/1000000 -> 19428.33853
A82: 2008 | B82: 11 | C82: Noviembre | D82: 1132993842 | E82: =IF(A82=A81,E81+D82,D82) -> 20561332374 | F82: =D82/1000000 -> 1132.993842 | G82: =E82/1000000 -> 20561.33237
A83: 2008 | B83: 12 | C83: Diciembre | D83: 1358518517 | E83: =IF(A83=A82,E82+D83,D83) -> 21919850891 | F83: =D83/1000000 -> 1358.518517 | G83: =E83/1000000 -> 21919.85089
A84: 2009 | B84: 1 | C84: Enero | D84: 1553370420 | E84: =IF(A84=A83,E83+D84,D84) -> 1553370420 | F84: =D84/1000000 -> 1553.37042 | G84: =E84/1000000 -> 1553.37042
A85: 2009 | B85: 2 | C85: Febrero | D85: 1112658695 | E85: =IF(A85=A84,E84+D85,D85) -> 2666029115 | F85: =D85/1000000 -> 1112.658695 | G85: =E85/1000000 -> 2666.029115
A86: 2009 | B86: 3 | C86: Marzo | D86: 1009458257 | E86: =IF(A86=A85,E85+D86,D86) -> 3675487372 | F86: =D86/1000000 -> 1009.458257 | G86: =E86/1000000 -> 3675.487372
A87: 2009 | B87: 4 | C87: Abril | D87: 1827282622 | E87: =IF(A87=A86,E86+D87,D87) -> 5502769994 | F87: =D87/1000000 -> 1827.282622 | G87: =E87/1000000 -> 5502.769994
A88: 2009 | B88: 5 | C88: Mayo | D88: 2184836679 | E88: =IF(A88=A87,E87+D88,D88) -> 7687606673 | F88: =D88/1000000 -> 2184.836679 | G88: =E88/1000000 -> 7687.606673
A89: 2009 | B89: 6 | C89: Junio | D89: 1924867066 | E89: =IF(A89=A88,E88+D89,D89) -> 9612473739 | F89: =D89/1000000 -> 1924.867066 | G89: =E89/1000000 -> 9612.473739
A90: 2009 | B90: 7 | C90: Julio | D90: 1358546843 | E90: =IF(A90=A89,E89+D90,D90) -> 10971020582 | F90: =D90/1000000 -> 1358.546843 | G90: =E90/1000000 -> 10971.02058
A91: 2009 | B91: 8 | C91: Agosto | D91: 1122338655 | E91: =IF(A91=A90,E90+D91,D91) -> 12093359237 | F91: =D91/1000000 -> 1122.338655 | G91: =E91/1000000 -> 12093.35924
A92: 2009 | B92: 9 | C92: Septiembre | D92: 1102253247 | E92: =IF(A92=A91,E91+D92,D92) -> 13195612484 | F92: =D92/1000000 -> 1102.253247 | G92: =E92/1000000 -> 13195.61248
A93: 2009 | B93: 10 | C93: Octubre | D93: 1122299305 | E93: =IF(A93=A92,E92+D93,D93) -> 14317911789 | F93: =D93/1000000 -> 1122.299305 | G93: =E93/1000000 -> 14317.91179
A94: 2009 | B94: 11 | C94: Noviembre | D94: 1084706284 | E94: =IF(A94=A93,E93+D94,D94) -> 15402618073 | F94: =D94/1000000 -> 1084.706284 | G94: =E94/1000000 -> 15402.61807
A95: 2009 | B95: 12 | C95: Diciembre | D95: 796027128 | E95: =IF(A95=A94,E94+D95,D95) -> 16198645201 | F95: =D95/1000000 -> 796.027128 | G95: =E95/1000000 -> 16198.6452
A96: 2010 | B96: 1 | C96: Enero | D96: 994697683 | E96: =IF(A96=A95,E95+D96,D96) -> 994697683 | F96: =D96/1000000 -> 994.697683 | G96: =E96/1000000 -> 994.697683
A97: 2010 | B97: 2 | C97: Febrero | D97: 1021742844 | E97: =IF(A97=A96,E96+D97,D97) -> 2016440527 | F97: =D97/1000000 -> 1021.742844 | G97: =E97/1000000 -> 2016.440527
A98: 2010 | B98: 3 | C98: Marzo | D98: 1310387678 | E98: =IF(A98=A97,E97+D98,D98) -> 3326828205 | F98: =D98/1000000 -> 1310.387678 | G98: =E98/1000000 -> 3326.828205
A99: 2010 | B99: 4 | C99: Abril | D99: 2262442567 | E99: =IF(A99=A98,E98+D99,D99) -> 5589270772 | F99: =D99/1000000 -> 2262.442567 | G99: =E99/1000000 -> 5589.270772
A100: 2010 | B100: 5 | C100: Mayo | D100: 2289864443 | E100: =IF(A100=A99,E99+D100,D100) -> 7879135215 | F100: =D100/1000000 -> 2289.864443 | G100: =E100/1000000 -> 7879.135215
A101: 2010 | B101: 6 | C101: Junio | D101: 2693534364 | E101: =IF(A101=A100,E100+D101,D101) -> 10572669579 | F101: =D101/1000000 -> 2693.534364 | G101: =E101/1000000 -> 10572.66958
A102: 2010 | B102: 7 | C102: Julio | D102: 2560174026 | E102: =IF(A102=A101,E101+D102,D102) -> 13132843605 | F102: =D102/1000000 -> 2560.174026 | G102: =E102/1000000 -> 13132.84361
A103: 2010 | B103: 8 | C103: Agosto | D103: 1880090395 | E103: =IF(A103=A102,E102+D103,D103) -> 15012934000 | F103: =D103/1000000 -> 1880.090395 | G103: =E103/1000000 -> 15012.934
A104: 2010 | B104: 9 | C104: Septiembre | D104: 2031839898 | E104: =IF(A104=A103,E103+D104,D104) -> 17044773898 | F104: =D104/1000000 -> 2031.839898 | G104: =E104/1000000 -> 17044.7739
A105: 2010 | B105: 10 | C105: Octubre | D105: 1931576903 | E105: =IF(A105=A104,E104+D105,D105) -> 18976350801 | F105: =D105/1000000 -> 1931.576903 | G105: =E105/1000000 -> 18976.3508
A106: 2010 | B106: 11 | C106: Noviembre | D106: 1647718403 | E106: =IF(A106=A105,E105+D106,D106) -> 20624069204 | F106: =D106/1000000 -> 1647.718403 | G106: =E106/1000000 -> 20624.0692
A107: 2010 | B107: 12 | C107: Diciembre | D107: 1609862062 | E107: =IF(A107=A106,E106+D107,D107) -> 22233931266 | F107: =D107/1000000 -> 1609.862062 | G107: =E107/1000000 -> 22233.93127
A108: 2011 | B108: 1 | C108: Enero | D108: 1430502591 | E108: =IF(A108=A107,E107+D108,D108) -> 1430502591 | F108: =D108/1000000 -> 1430.502591 | G108: =E108/1000000 -> 1430.502591
A109: 2011 | B109: 2 | C109: Febrero | D109: 1193778917 | E109: =IF(A109=A108,E108+D109,D109) -> 2624281508 | F109: =D109/1000000 -> 1193.778917 | G109: =E109/1000000 -> 2624.281508
A110: 2011 | B110: 3 | C110: Marzo | D110: 1817743328 | E110: =IF(A110=A109,E109+D110,D110) -> 4442024836 | F110: =D110/1000000 -> 1817.743328 | G110: =E110/1000000 -> 4442.024836
A111: 2011 | B111: 4 | C111: Abril | D111: 2613718837 | E111: =IF(A111=A110,E110+D111,D111) -> 7055743673 | F111: =D111/1000000 -> 2613.718837 | G111: =E111/1000000 -> 7055.743673
A112: 2011 | B112: 5 | C112: Mayo | D112: 3203122805 | E112: =IF(A112=A111,E111+D112,D112) -> 10258866478 | F112: =D112/1000000 -> 3203.122805 | G112: =E112/1000000 -> 10258.86648
A113: 2011 | B113: 6 | C113: Junio | D113: 2951579543 | E113: =IF(A113=A112,E112+D113,D113) -> 13210446021 | F113: =D113/1000000 -> 2951.579543 | G113: =E113/1000000 -> 13210.44602
A114: 2011 | B114: 7 | C114: Julio | D114: 2248896480 | E114: =IF(A114=A113,E113+D114,D114) -> 15459342501 | F114: =D114/1000000 -> 2248.89648 | G114: =E114/1000000 -> 15459.3425
A115: 2011 | B115: 8 | C115: Agosto | D115: 2571052523 | E115: =IF(A115=A114,E114+D115,D115) -> 18030395024 | F115: =D115/1000000 -> 2571.052523 | G115: =E115/1000000 -> 18030.39502
A116: 2011 | B116: 9 | C116: Septiembre | D116: 2238740344 | E116: =IF(A116=A115,E115+D116,D116) -> 20269135368 | F116: =D116/1000000 -> 2238.740344 | G116: =E116/1000000 -> 20269.13537
A117: 2011 | B117: 10 | C117: Octubre | D117: 1962151064 | E117: =IF(A117=A116,E116+D117,D117) -> 22231286432 | F117: =D117/1000000 -> 1962.151064 | G117: =E117/1000000 -> 22231.28643
A118: 2011 | B118: 11 | C118: Noviembre | D118: 1328008301 | E118: =IF(A118=A117,E117+D118,D118) -> 23559294733 | F118: =D118/1000000 -> 1328.008301 | G118: =E118/1000000 -> 23559.29473
A119: 2011 | B119: 12 | C119: Diciembre | D119: 1473727050 | E119: =IF(A119=A118,E118+D119,D119) -> 25033021783 | F119: =D119/1000000 -> 1473.72705 | G119: =E119/1000000 -> 25033.02178
A120: 2012 | B120: 1 | C120: Enero | D120: 1700959235 | E120: =IF(A120=A119,E119+D120,D120) -> 1700959235 | F120: =D120/1000000 -> 1700.959235 | G120: =E120/1000000 -> 1700.959235
A121: 2012 | B121: 2 | C121: Febrero | D121: 1221718674 | E121: =IF(A121=A120,E120+D121,D121) -> 2922677909 | F121: =D121/1000000 -> 1221.718674 | G121: =E121/1000000 -> 2922.677909
A122: 2012 | B122: 3 | C122: Marzo | D122: 1770183728 | E122: =IF(A122=A121,E121+D122,D122) -> 4692861637 | F122: =D122/1000000 -> 1770.183728 | G122: =E122/1000000 -> 4692.861637
A123: 2012 | B123: 4 | C123: Abril | D123: 2350965209 | E123: =IF(A123=A122,E122+D123,D123) -> 7043826846 | F123: =D123/1000000 -> 2350.965209 | G123: =E123/1000000 -> 7043.826846
A124: 2012 | B124: 5 | C124: Mayo | D124: 2642882997 | E124: =IF(A124=A123,E123+D124,D124) -> 9686709843 | F124: =D124/1000000 -> 2642.882997 | G124: =E124/1000000 -> 9686.709843
A125: 2012 | B125: 6 | C125: Junio | D125: 2301707685 | E125: =IF(A125=A124,E124+D125,D125) -> 11988417528 | F125: =D125/1000000 -> 2301.707685 | G125: =E125/1000000 -> 11988.41753
A126: 2012 | B126: 7 | C126: Julio | D126: 2586346011 | E126: =IF(A126=A125,E125+D126,D126) -> 14574763539 | F126: =D126/1000000 -> 2586.346011 | G126: =E126/1000000 -> 14574.76354
A127: 2012 | B127: 8 | C127: Agosto | D127: 2093554716 | E127: =IF(A127=A126,E126+D127,D127) -> 16668318255 | F127: =D127/1000000 -> 2093.554716 | G127: =E127/1000000 -> 16668.31826
A128: 2012 | B128: 9 | C128: Septiembre | D128: 1727424677 | E128: =IF(A128=A127,E127+D128,D128) -> 18395742932 | F128: =D128/1000000 -> 1727.424677 | G128: =E128/1000000 -> 18395.74293
A129: 2012 | B129: 10 | C129: Octubre | D129: 1694791506 | E129: =IF(A129=A128,E128+D129,D129) -> 20090534438 | F129: =D129/1000000 -> 1694.791506 | G129: =E129/1000000 -> 20090.53444
A130: 2012 | B130: 11 | C130: Noviembre | D130: 1441357482 | E130: =IF(A130=A129,E129+D130,D130) -> 21531891920 | F130: =D130/1000000 -> 1441.357482 | G130: =E130/1000000 -> 21531.89192
A131: 2012 | B131: 12 | C131: Diciembre | D131: 1537122797 | E131: =IF(A131=A130,E130+D131,D131) -> 23069014717 | F131: =D131/1000000 -> 1537.122797 | G131: =E131/1000000 -> 23069.01472
A132: 2013 | B132: 1 | C132: Enero | D132: 1284200309 | E132: =IF(A132=A131,E131+D132,D132) -> 1284200309 | F132: =D132/1000000 -> 1284.200309 | G132: =E132/1000000 -> 1284.200309
A133: 2013 | B133: 2 | C133: Febrero | D133: 948980098 | E133: =IF(A133=A132,E132+D133,D133) -> 2233180407 | F133: =D133/1000000 -> 948.980098 | G133: =E133/1000000 -> 2233.180407
A134: 2013 | B134: 3 | C134: Marzo | D134: 1755411040 | E134: =IF(A134=A133,E133+D134,D134) -> 3988591447 | F134: =D134/1000000 -> 1755.41104 | G134: =E134/1000000 -> 3988.591447
A135: 2013 | B135: 4 | C135: Abril | D135: 3045745408 | E135: =IF(A135=A134,E134+D135,D135) -> 7034336855 | F135: =D135/1000000 -> 3045.745408 | G135: =E135/1000000 -> 7034.336855
A136: 2013 | B136: 5 | C136: Mayo | D136: 3276756091 | E136: =IF(A136=A135,E135+D136,D136) -> 10311092946 | F136: =D136/1000000 -> 3276.756091 | G136: =E136/1000000 -> 10311.09295
A137: 2013 | B137: 6 | C137: Junio | D137: 2488772820 | E137: =IF(A137=A136,E136+D137,D137) -> 12799865766 | F137: =D137/1000000 -> 2488.77282 | G137: =E137/1000000 -> 12799.86577
A138: 2013 | B138: 7 | C138: Julio | D138: 2335837473 | E138: =IF(A138=A137,E137+D138,D138) -> 15135703239 | F138: =D138/1000000 -> 2335.837473 | G138: =E138/1000000 -> 15135.70324
A139: 2013 | B139: 8 | C139: Agosto | D139: 2380926696 | E139: =IF(A139=A138,E138+D139,D139) -> 17516629935 | F139: =D139/1000000 -> 2380.926696 | G139: =E139/1000000 -> 17516.62994
A140: 2013 | B140: 9 | C140: Septiembre | D140: 1804820978 | E140: =IF(A140=A139,E139+D140,D140) -> 19321450913 | F140: =D140/1000000 -> 1804.820978 | G140: =E140/1000000 -> 19321.45091
A141: 2013 | B141: 10 | C141: Octubre | D141: 1547575794 | E141: =IF(A141=A140,E140+D141,D141) -> 20869026707 | F141: =D141/1000000 -> 1547.575794 | G141: =E141/1000000 -> 20869.02671
A142: 2013 | B142: 11 | C142: Noviembre | D142: 1109087317 | E142: =IF(A142=A141,E141+D142,D142) -> 21978114024 | F142: =D142/1000000 -> 1109.087317 | G142: =E142/1000000 -> 21978.11402
A143: 2013 | B143: 12 | C143: Diciembre | D143: 1230427422 | E143: =IF(A143=A142,E142+D143,D143) -> 23208541446 | F143: =D143/1000000 -> 1230.427422 | G143: =E143/1000000 -> 23208.54145
A144: 2014 | B144: 1 | C144: Enero | D144: 1069024859 | E144: =IF(A144=A143,E143+D144,D144) -> 1069024859 | F144: =D144/1000000 -> 1069.024859 | G144: =E144/1000000 -> 1069.024859
A145: 2014 | B145: 2 | C145: Febrero | D145: 1891919295 | E145: =IF(A145=A144,E144+D145,D145) -> 2960944154 | F145: =D145/1000000 -> 1891.919295 | G145: =E145/1000000 -> 2960.944154
A146: 2014 | B146: 3 | C146: Marzo | D146: 1669471496 | E146: =IF(A146=A145,E145+D146,D146) -> 4630415650 | F146: =D146/1000000 -> 1669.471496 | G146: =E146/1000000 -> 4630.41565
A147: 2014 | B147: 4 | C147: Abril | D147: 3174835789 | E147: =IF(A147=A146,E146+D147,D147) -> 7805251439 | F147: =D147/1000000 -> 3174.835789 | G147: =E147/1000000 -> 7805.251439
A148: 2014 | B148: 5 | C148: Mayo | D148: 2976466217 | E148: =IF(A148=A147,E147+D148,D148) -> 10781717656 | F148: =D148/1000000 -> 2976.466217 | G148: =E148/1000000 -> 10781.71766
A149: 2014 | B149: 6 | C149: Junio | D149: 2493592739 | E149: =IF(A149=A148,E148+D149,D149) -> 13275310395 | F149: =D149/1000000 -> 2493.592739 | G149: =E149/1000000 -> 13275.3104
A150: 2014 | B150: 7 | C150: Julio | D150: 2790784382 | E150: =IF(A150=A149,E149+D150,D150) -> 16066094777 | F150: =D150/1000000 -> 2790.784382 | G150: =E150/1000000 -> 16066.09478
A151: 2014 | B151: 8 | C151: Agosto | D151: 1461127483 | E151: =IF(A151=A150,E150+D151,D151) -> 17527222260 | F151: =D151/1000000 -> 1461.127483 | G151: =E151/1000000 -> 17527.22226
A152: 2014 | B152: 9 | C152: Septiembre | D152: 1077410075 | E152: =IF(A152=A151,E151+D152,D152) -> 18604632335 | F152: =D152/1000000 -> 1077.410075 | G152: =E152/1000000 -> 18604.63234
A153: 2014 | B153: 10 | C153: Octubre | D153: 1781473082 | E153: =IF(A153=A152,E152+D153,D153) -> 20386105417 | F153: =D153/1000000 -> 1781.473082 | G153: =E153/1000000 -> 20386.10542
A154: 2014 | B154: 11 | C154: Noviembre | D154: 1874138058 | E154: =IF(A154=A153,E153+D154,D154) -> 22260243475 | F154: =D154/1000000 -> 1874.138058 | G154: =E154/1000000 -> 22260.24348
A155: 2014 | B155: 12 | C155: Diciembre | D155: 1791090647 | E155: =IF(A155=A154,E154+D155,D155) -> 24051334122 | F155: =D155/1000000 -> 1791.090647 | G155: =E155/1000000 -> 24051.33412
A156: 2015 | B156: 1 | C156: Enero | D156: 1086891281 | E156: =IF(A156=A155,E155+D156,D156) -> 1086891281 | F156: =D156/1000000 -> 1086.891281 | G156: =E156/1000000 -> 1086.891281
A157: 2015 | B157: 2 | C157: Febrero | D157: 935119806 | E157: =IF(A157=A156,E156+D157,D157) -> 2022011087 | F157: =D157/1000000 -> 935.119806 | G157: =E157/1000000 -> 2022.011087
A158: 2015 | B158: 3 | C158: Marzo | D158: 1177985169 | E158: =IF(A158=A157,E157+D158,D158) -> 3199996256 | F158: =D158/1000000 -> 1177.985169 | G158: =E158/1000000 -> 3199.996256
A159: 2015 | B159: 4 | C159: Abril | D159: 2433070867 | E159: =IF(A159=A158,E158+D159,D159) -> 5633067123 | F159: =D159/1000000 -> 2433.070867 | G159: =E159/1000000 -> 5633.067123
A160: 2015 | B160: 5 | C160: Mayo | D160: 2358788553 | E160: =IF(A160=A159,E159+D160,D160) -> 7991855676 | F160: =D160/1000000 -> 2358.788553 | G160: =E160/1000000 -> 7991.855676
A161: 2015 | B161: 6 | C161: Junio | D161: 2950062119 | E161: =IF(A161=A160,E160+D161,D161) -> 10941917795 | F161: =D161/1000000 -> 2950.062119 | G161: =E161/1000000 -> 10941.9178
A162: 2015 | B162: 7 | C162: Julio | D162: 2645989051 | E162: =IF(A162=A161,E161+D162,D162) -> 13587906846 | F162: =D162/1000000 -> 2645.989051 | G162: =E162/1000000 -> 13587.90685
A163: 2015 | B163: 8 | C163: Agosto | D163: 1511441080 | E163: =IF(A163=A162,E162+D163,D163) -> 15099347926 | F163: =D163/1000000 -> 1511.44108 | G163: =E163/1000000 -> 15099.34793
A164: 2015 | B164: 9 | C164: Septiembre | D164: 1164209324 | E164: =IF(A164=A163,E163+D164,D164) -> 16263557250 | F164: =D164/1000000 -> 1164.209324 | G164: =E164/1000000 -> 16263.55725
A165: 2015 | B165: 10 | C165: Octubre | D165: 1141586462 | E165: =IF(A165=A164,E164+D165,D165) -> 17405143712 | F165: =D165/1000000 -> 1141.586462 | G165: =E165/1000000 -> 17405.14371
A166: 2015 | B166: 11 | C166: Noviembre | D166: 450888381 | E166: =IF(A166=A165,E165+D166,D166) -> 17856032093 | F166: =D166/1000000 -> 450.888381 | G166: =E166/1000000 -> 17856.03209
A167: 2015 | B167: 12 | C167: Diciembre | D167: 2096486956 | E167: =IF(A167=A166,E166+D167,D167) -> 19952519049 | F167: =D167/1000000 -> 2096.486956 | G167: =E167/1000000 -> 19952.51905
A168: 2016 | B168: 1 | C168: Enero | D168: 2477212744 | E168: =IF(A168=A167,E167+D168,D168) -> 2477212744 | F168: =D168/1000000 -> 2477.212744 | G168: =E168/1000000 -> 2477.212744
A169: 2016 | B169: 2 | C169: Febrero | D169: 1646228102 | E169: =IF(A169=A168,E168+D169,D169) -> 4123440846 | F169: =D169/1000000 -> 1646.228102 | G169: =E169/1000000 -> 4123.440846
A170: 2016 | B170: 3 | C170: Marzo | D170: 1777226704 | E170: =IF(A170=A169,E169+D170,D170) -> 5900667550 | F170: =D170/1000000 -> 1777.226704 | G170: =E170/1000000 -> 5900.66755
A171: 2016 | B171: 4 | C171: Abril | D171: 2147677047 | E171: =IF(A171=A170,E170+D171,D171) -> 8048344597 | F171: =D171/1000000 -> 2147.677047 | G171: =E171/1000000 -> 8048.344597
A172: 2016 | B172: 5 | C172: Mayo | D172: 3006717075 | E172: =IF(A172=A171,E171+D172,D172) -> 11055061672 | F172: =D172/1000000 -> 3006.717075 | G172: =E172/1000000 -> 11055.06167
A173: 2016 | B173: 6 | C173: Junio | D173: 2068017443 | E173: =IF(A173=A172,E172+D173,D173) -> 13123079115 | F173: =D173/1000000 -> 2068.017443 | G173: =E173/1000000 -> 13123.07912
A174: 2016 | B174: 7 | C174: Julio | D174: 1866810449 | E174: =IF(A174=A173,E173+D174,D174) -> 14989889564 | F174: =D174/1000000 -> 1866.810449 | G174: =E174/1000000 -> 14989.88956
A175: 2016 | B175: 8 | C175: Agosto | D175: 2479675233 | E175: =IF(A175=A174,E174+D175,D175) -> 17469564797 | F175: =D175/1000000 -> 2479.675233 | G175: =E175/1000000 -> 17469.5648
A176: 2016 | B176: 9 | C176: Septiembre | D176: 1787582080 | E176: =IF(A176=A175,E175+D176,D176) -> 19257146877 | F176: =D176/1000000 -> 1787.58208 | G176: =E176/1000000 -> 19257.14688
A177: 2016 | B177: 10 | C177: Octubre | D177: 1706403937 | E177: =IF(A177=A176,E176+D177,D177) -> 20963550814 | F177: =D177/1000000 -> 1706.403937 | G177: =E177/1000000 -> 20963.55081
A178: 2016 | B178: 11 | C178: Noviembre | D178: 1598765636 | E178: =IF(A178=A177,E177+D178,D178) -> 22562316450 | F178: =D178/1000000 -> 1598.765636 | G178: =E178/1000000 -> 22562.31645
A179: 2016 | B179: 12 | C179: Diciembre | D179: 1400366197 | E179: =IF(A179=A178,E178+D179,D179) -> 23962682647 | F179: =D179/1000000 -> 1400.366197 | G179: =E179/1000000 -> 23962.68265
A180: 2017 | B180: 1 | C180: Enero | D180: 2050385854 | E180: =IF(A180=A179,E179+D180,D180) -> 2050385854 | F180: =D180/1000000 -> 2050.385854 | G180: =E180/1000000 -> 2050.385854
A181: 2017 | B181: 2 | C181: Febrero | D181: 1100379871 | E181: =IF(A181=A180,E180+D181,D181) -> 3150765725 | F181: =D181/1000000 -> 1100.379871 | G181: =E181/1000000 -> 3150.765725
A182: 2017 | B182: 3 | C182: Marzo | D182: 1672406226 | E182: =IF(A182=A181,E181+D182,D182) -> 4823171951 | F182: =D182/1000000 -> 1672.406226 | G182: =E182/1000000 -> 4823.171951
A183: 2017 | B183: 4 | C183: Abril | D183: 1821318860 | E183: =IF(A183=A182,E182+D183,D183) -> 6644490811 | F183: =D183/1000000 -> 1821.31886 | G183: =E183/1000000 -> 6644.490811
A184: 2017 | B184: 5 | C184: Mayo | D184: 2488218286 | E184: =IF(A184=A183,E183+D184,D184) -> 9132709097 | F184: =D184/1000000 -> 2488.218286 | G184: =E184/1000000 -> 9132.709097
A185: 2017 | B185: 6 | C185: Junio | D185: 2245777874 | E185: =IF(A185=A184,E184+D185,D185) -> 11378486971 | F185: =D185/1000000 -> 2245.777874 | G185: =E185/1000000 -> 11378.48697
A186: 2017 | B186: 7 | C186: Julio | D186: 2229317743 | E186: =IF(A186=A185,E185+D186,D186) -> 13607804714 | F186: =D186/1000000 -> 2229.317743 | G186: =E186/1000000 -> 13607.80471
A187: 2017 | B187: 8 | C187: Agosto | D187: 2256282526 | E187: =IF(A187=A186,E186+D187,D187) -> 15864087240 | F187: =D187/1000000 -> 2256.282526 | G187: =E187/1000000 -> 15864.08724
A188: 2017 | B188: 9 | C188: Septiembre | D188: 1650689519 | E188: =IF(A188=A187,E187+D188,D188) -> 17514776759 | F188: =D188/1000000 -> 1650.689519 | G188: =E188/1000000 -> 17514.77676
A189: 2017 | B189: 10 | C189: Octubre | D189: 1422636553 | E189: =IF(A189=A188,E188+D189,D189) -> 18937413312 | F189: =D189/1000000 -> 1422.636553 | G189: =E189/1000000 -> 18937.41331
A190: 2017 | B190: 11 | C190: Noviembre | D190: 1307816494 | E190: =IF(A190=A189,E189+D190,D190) -> 20245229806 | F190: =D190/1000000 -> 1307.816494 | G190: =E190/1000000 -> 20245.22981
A191: 2017 | B191: 12 | C191: Diciembre | D191: 1153854277 | E191: =IF(A191=A190,E190+D191,D191) -> 21399084083 | F191: =D191/1000000 -> 1153.854277 | G191: =E191/1000000 -> 21399.08408
A192: 2018 | B192: 1 | C192: Enero | D192: 1879151216 | E192: =IF(A192=A191,E191+D192,D192) -> 1879151216 | F192: =D192/1000000 -> 1879.151216 | G192: =E192/1000000 -> 1879.151216
A193: 2018 | B193: 2 | C193: Febrero | D193: 1378551615 | E193: =IF(A193=A192,E192+D193,D193) -> 3257702831 | F193: =D193/1000000 -> 1378.551615 | G193: =E193/1000000 -> 3257.702831
A194: 2018 | B194: 3 | C194: Marzo | D194: 1423059120 | E194: =IF(A194=A193,E193+D194,D194) -> 4680761951 | F194: =D194/1000000 -> 1423.05912 | G194: =E194/1000000 -> 4680.761951
A195: 2018 | B195: 4 | C195: Abril | D195: 1376332358 | E195: =IF(A195=A194,E194+D195,D195) -> 6057094309 | F195: =D195/1000000 -> 1376.332358 | G195: =E195/1000000 -> 6057.094309
A196: 2018 | B196: 5 | C196: Mayo | D196: 1677797871 | E196: =IF(A196=A195,E195+D196,D196) -> 7734892180 | F196: =D196/1000000 -> 1677.797871 | G196: =E196/1000000 -> 7734.89218
A197: 2018 | B197: 6 | C197: Junio | D197: 3833254488 | E197: =IF(A197=A196,E196+D197,D197) -> 11568146668 | F197: =D197/1000000 -> 3833.254488 | G197: =E197/1000000 -> 11568.14667
A198: 2018 | B198: 7 | C198: Julio | D198: 2701252139 | E198: =IF(A198=A197,E197+D198,D198) -> 14269398807 | F198: =D198/1000000 -> 2701.252139 | G198: =E198/1000000 -> 14269.39881
A199: 2018 | B199: 8 | C199: Agosto | D199: 1604869934 | E199: =IF(A199=A198,E198+D199,D199) -> 15874268741 | F199: =D199/1000000 -> 1604.869934 | G199: =E199/1000000 -> 15874.26874
A200: 2018 | B200: 9 | C200: Septiembre | D200: 1310629612 | E200: =IF(A200=A199,E199+D200,D200) -> 17184898353 | F200: =D200/1000000 -> 1310.629612 | G200: =E200/1000000 -> 17184.89835
A201: 2018 | B201: 10 | C201: Octubre | D201: 1184029259 | E201: =IF(A201=A200,E200+D201,D201) -> 18368927612 | F201: =D201/1000000 -> 1184.029259 | G201: =E201/1000000 -> 18368.92761
... 94 more rows

Sheet Matriz lectura (M USD)
A1: Liquidación mensual — RESUMEN en millones de USD (solo lectura)
A3: Mes | B3: 2002 | C3: 2003 | D3: 2004 | E3: 2005 | F3: 2006 | G3: 2007 | H3: 2008 | I3: 2009 | J3: 2010 | K3: 2011 | L3: 2012 | M3: 2013 | N3: 2014 | O3: 2015 | P3: 2016 | Q3: 2017 | R3: 2018 | S3: 2019 | T3: 2020 | U3: 2021 | V3: 2022 | W3: 2023 | X3: 2024 | Y3: 2025 | Z3: 2026
A4: Enero | C4: 648.3 | D4: 1006.5 | E4: 765.6 | F4: 851.4 | G4: 1050.7 | H4: 1638.8 | I4: 1553.4 | J4: 994.7 | K4: 1430.5 | L4: 1701 | M4: 1284.2 | N4: 1069 | O4: 1086.9 | P4: 2477.2 | Q4: 2050.4 | R4: 1879.2 | S4: 1755.7 | T4: 1613.8 | U4: 2140.4 | V4: 2441.6 | W4: 928.4 | X4: 1522.4 | Y4: 2073.5 | Z4: 1850.8
A5: Febrero | C5: 429.3 | D5: 592.1 | E5: 777.9 | F5: 754.2 | G5: 695.8 | H5: 1614.2 | I5: 1112.7 | J5: 1021.7 | K5: 1193.8 | L5: 1221.7 | M5: 949 | N5: 1891.9 | O5: 935.1 | P5: 1646.2 | Q5: 1100.4 | R5: 1378.6 | S5: 1290.3 | T5: 815.1 | U5: 1810.1 | V5: 2500.4 | W5: 645 | X5: 1499.3 | Y5: 2181.3 | Z5: 1289.153168
A6: Marzo | C6: 633.4 | D6: 878.8 | E6: 959.6 | F6: 1000.6 | G6: 1063.8 | H6: 1353.3 | I6: 1009.5 | J6: 1310.4 | K6: 1817.7 | L6: 1770.2 | M6: 1755.4 | N6: 1669.5 | O6: 1178 | P6: 1777.2 | Q6: 1672.4 | R6: 1423.1 | S6: 1143.4 | T6: 1064.3 | U6: 2773.6 | V6: 2984 | W6: 1228.7 | X6: 1501.8 | Y6: 1879.8 | Z6: 2032.457589
A7: Abril | C7: 866.7 | D7: 1134.4 | E7: 1168.6 | F7: 1190.9 | G7: 1504.9 | H7: 2311.8 | I7: 1827.3 | J7: 2262.4 | K7: 2613.7 | L7: 2351 | M7: 3045.7 | N7: 3174.8 | O7: 2433.1 | P7: 2147.7 | Q7: 1821.3 | R7: 1376.3 | S7: 1915 | T7: 1524.4 | U7: 3031.4 | V7: 3171.8 | W7: 2435.2 | X7: 1909.9 | Y7: 2524.4 | Z7: 2494.526902
A8: Mayo | C8: 1093.8 | D8: 1366.6 | E8: 1433.4 | F8: 1518.6 | G8: 1880 | H8: 2401.9 | I8: 2184.8 | J8: 2289.9 | K8: 3203.1 | L8: 2642.9 | M8: 3276.8 | N8: 2976.5 | O8: 2358.8 | P8: 3006.7 | Q8: 2488.2 | R8: 1677.8 | S8: 2035.2 | T8: 1945.7 | U8: 3545.9 | V8: 4231.7 | W8: 4212.7 | X8: 2612.6 | Y8: 3054.2 | Z8: 2676.759381
A9: Junio | B9: 702.8 | C9: 1159.7 | D9: 1231.1 | E9: 1591.8 | F9: 1260.1 | G9: 1813.9 | H9: 1646.2 | I9: 1924.9 | J9: 2693.5 | K9: 2951.6 | L9: 2301.7 | M9: 2488.8 | N9: 2493.6 | O9: 2950.1 | P9: 2068 | Q9: 2245.8 | R9: 3833.3 | S9: 2218.9 | T9: 2344 | U9: 3358.4 | V9: 3815.4 | W9: 1581.7 | X9: 1977.9 | Y9: 3706.4 | Z9: 3007.67261
A10: Julio | B10: 807 | C10: 955.1 | D10: 866.8 | E10: 1154.6 | F10: 1083.8 | G10: 1736.7 | H10: 2807.3 | I10: 1358.5 | J10: 2560.2 | K10: 2248.9 | L10: 2586.3 | M10: 2335.8 | N10: 2790.8 | O10: 2646 | P10: 1866.8 | Q10: 2229.3 | R10: 2701.3 | S10: 2254 | T10: 2296.1 | U10: 3519.7 | V10: 3164.1 | W10: 1925 | X10: 2616.2 | Y10: 4102 | Z10: 2945.680245
A11: Agosto | B11: 637.2 | C11: 819.2 | D11: 728.1 | E11: 966.5 | F11: 1002.6 | G11: 1727.4 | H11: 2163.7 | I11: 1122.3 | J11: 1880.1 | K11: 2571.1 | L11: 2093.6 | M11: 2380.9 | N11: 1461.1 | O11: 1511.4 | P11: 2479.7 | Q11: 2256.3 | R11: 1604.9 | S11: 2266.1 | T11: 1743 | U11: 3049.8 | V11: 3387.9 | W11: 1746.3 | X11: 2451.5 | Y11: 1817.8 | Z11: 2750.704761
A12: Septiembre | B12: 572.5 | C12: 755.7 | D12: 896.5 | E12: 632.9 | F12: 929.3 | G12: 1634.3 | H12: 2007.2 | I12: 1102.3 | J12: 2031.8 | K12: 2238.7 | L12: 1727.4 | M12: 1804.8 | N12: 1077.4 | O12: 1164.2 | P12: 1787.6 | Q12: 1650.7 | R12: 1310.6 | S12: 2093.6 | T12: 1787.4 | U12: 2441.1 | V12: 8120.3 | W12: 2045.8 | X12: 2480.5 | Y12: 7107.9
A13: Octubre | B13: 668.8 | C13: 828.3 | D13: 690.1 | E13: 660.8 | F13: 912.3 | G13: 1552.4 | H13: 1484.1 | I13: 1122.3 | J13: 1931.6 | K13: 1962.2 | L13: 1694.8 | M13: 1547.6 | N13: 1781.5 | O13: 1141.6 | P13: 1706.4 | Q13: 1422.6 | R13: 1184 | S13: 1978.2 | T13: 1715.5 | U13: 2416.6 | V13: 1217.3 | W13: 743.6 | X13: 2553.2 | Y13: 1116.8
A14: Noviembre | B14: 532.4 | C14: 538.6 | D14: 717.3 | E14: 677.3 | F14: 781 | G14: 1412.3 | H14: 1133 | I14: 1084.7 | J14: 1647.7 | K14: 1328 | L14: 1441.4 | M14: 1109.1 | N14: 1874.1 | O14: 450.9 | P14: 1598.8 | Q14: 1307.8 | R14: 810 | S14: 2185.6 | T14: 1734.3 | U14: 2042.7 | V14: 1697 | W14: 1004 | X14: 1999.2 | Y14: 759.7
A15: Diciembre | B15: 442.2 | C15: 722.1 | D15: 947.4 | E15: 865.2 | F15: 991.3 | G15: 1505.7 | H15: 1358.5 | I15: 796 | J15: 1609.9 | K15: 1473.7 | L15: 1537.1 | M15: 1230.4 | N15: 1791.1 | O15: 2096.5 | P15: 1400.4 | Q15: 1153.9 | R15: 1040.5 | S15: 2223.4 | T15: 1690.8 | U15: 2678.3 | V15: 3706.6 | W15: 1245.8 | X15: 1966.1 | Y15: 1015
A16: Total anual | B16: 4362.8 | C16: 9450.3 | D16: 11055.6 | E16: 11654.3 | F16: 12276.1 | G16: 17577.9 | H16: 21919.9 | I16: 16198.6 | J16: 22233.9 | K16: 25033 | L16: 23069 | M16: 23208.5 | N16: 24051.3 | O16: 19952.5 | P16: 23962.7 | Q16: 21399.1 | R16: 20219.5 | S16: 23359.5 | T16: 20274.4 | U16: 32807.9 | V16: 40438.2 | W16: 19742.1 | X16: 25090.7 | Y16: 31338.8 | Z16: =SUM(Z4:Z15) -> 19047.75466
